Cogmind - Beta 11 X7 --- EXPLORER MODE // 2021.10.02 @ 00:40:59 // Winter2019/RPGLIKE Player: jfk Result: Self-destructed Performance ------------- Evolutions (1) 500 Regions Visited (5) 1000 Robots Destroyed (19) 95 Value Destroyed (499) 499 Prototype IDs (24) 480 Alien Tech Used (0) 0 Bonus (325) 325 TOTAL SCORE: 2899 Bonus ------- Follower Combat Kills 25 Aligned with FarCom 300 Cogmind --------- Core Integrity 573/600 Matter 252/300 Energy 160/160 System Corruption 0% Temperature Cool (0) Movement Flying (34) Location -9/Exiles Parts ------- > --- POWER (2) -------- Light Nuclear Core > --- PROPULSION (3) --- Flight Unit Improved Flight Unit Improved Flight Unit > --- UTILITY (4) ------ (None) > --- WEAPON (2) ------- Shotgun Shotgun > --- INVENTORY (0) ---- (None) Peak State ------------ > --- POWER ------------ Improved Ion Engine Light Nuclear Core > --- PROPULSION ------- Flight Unit Improved Flight Unit Improved Flight Unit > --- UTILITY ---------- (None) > --- WEAPON ----------- Shotgun Shotgun > --- INVENTORY -------- (None) [Rating: 16] Favorites ----------- Power Light Nuclear Core Engine Improved Ion Engine Power Core Light Nuclear Core Propulsion Improved Flight Unit Flight Unit Improved Flight Unit Utility None Weapon Shotgun Ballistic Gun Shotgun Build | -11 -10 -10 -9 -9 -9 ------- Run | Scr Mat Min Mat Min Exi Slots Evolved 7 | . 7 . . . . Power 1 | . 1 . . . . Propulsion 2 | . 2 . . . . Utility 3 | . 3 . . . . Weapon 1 | . 1 . . . . Parts Attached 12 | . 8 2 2 . . Power 3 | . . 1 2 . . Engine 2 | . . 1 1 . . Core 1 | . . . 1 . . Reactor . | . . . . . . Propulsion 5 | . 4 1 . . . Treads . | . . . . . . Leg . | . . . . . . Wheel . | . . . . . . Hover . | . . . . . . Flight 5 | . 4 1 . . . Utility . | . . . . . . Device . | . . . . . . Storage . | . . . . . . Processor . | . . . . . . Hackware . | . . . . . . Protection . | . . . . . . Artifact . | . . . . . . Weapon 4 | . 4 . . . . Energy Gun . | . . . . . . Energy Cannon . | . . . . . . Ballistic Gun 4 | . 4 . . . . Ballistic Cannon . | . . . . . . Launcher . | . . . . . . Special Weapon . | . . . . . . Impact Weapon . | . . . . . . Slashing Weapon . | . . . . . . Piercing Weapon . | . . . . . . Special Melee Weapon . | . . . . . . Unidentified Prototypes 1 | . 1 . . . . Parts Lost . | . . . . . . Power . | . . . . . . Propulsion . | . . . . . . Utility . | . . . . . . Weapon . | . . . . . . Highest Loss Streak . | . . . . . . Average Slot Usage (%) 47 | . 22 50 54 54 54 Engine 2 | . . 5 4 . . Core 3 | . . . 4 9 9 Flight 23 | . 7 26 27 27 27 Ballistic Gun 17 | . 15 18 18 18 18 Naked Turns 22 | . 22 . . . . Heaviest Build 13 | . 6 13 13 11 11 Greatest Support 14 | 3 10 14 14 14 14 Greatest Overweight (x) 1 | . 1 . . . . Average Overweight (x) . | . . . . . . Largest Inventory Capacity . | . . . . . . Average Capacity . | . . . . . . Most Carried . | . . . . . . Average Carried . | . . . . . . Final Capacity . | . . . . . . Final Carried . | . . . . . . Class Distribution -------------------- 100% | Hacker-Mutant Dominant Class ---------------- Hacker-Mutant | -10/Materials Hacker-Mutant | -10/Mines Hacker-Mutant | -9/Materials Hacker-Mutant | -9/Mines Hacker-Mutant | -9/Exiles Resources | -11 -10 -10 -9 -9 -9 ----------- Run | Scr Mat Min Mat Min Exi Matter Collected 532 | 78 132 222 60 40 . Remotely . | . . . . . . Salvage Created 508 | . 28 142 168 170 . Parts 35 | . 9 5 14 7 . Haulers Intercepted . | . . . . . . Recyclers Shooed . | . . . . . . Parts Field Recycled . | . . . . . . Retrieved Matter . | . . . . . . Parts Self-Destructed . | . . . . . . Prevented . | . . . . . . Kills | -11 -10 -10 -9 -9 -9 ------- Run | Scr Mat Min Mat Min Exi Combat Hostiles Destroyed 26 | . 3 11 4 8 . Guns 26 | . 3 11 4 8 . Classes Destroyed 6 | . 2 3 . 1 . Builder 1 | . 1 . . . . Swarmer 7 | . . 2 . 5 . Grunt 8 | . 3 . 4 1 . Duelist 2 | . . . . 2 . Sentry 1 | . . 1 . . . Assembled 8 | . . 8 . . . Best Kill Streak 5 | . 3 5 4 5 . Combat Bots Only 5 | . 3 5 4 5 . Max Kills in Single Turn 2 | . 2 2 1 2 . Gunslinging 1 | . 1 1 . 1 . Exploded . | . . . . . . Melee . | . . . . . . Uniques/NPCs Destroyed . | . . . . . . Combat | -11 -10 -10 -9 -9 -9 -------- Run | Scr Mat Min Mat Min Exi Damage Taken 251 | . 160 19 34 38 . Core 211 | . 136 17 28 30 . Absorbed by Shields . | . . . . . . Redirected to Core 99 | . 57 4 14 24 . Core Remaining (%) 98 | 100 . 97 . . . Volleys Fired 34 | . 5 13 5 11 . Largest 2 | . 2 2 2 2 . Hottest 46 | . 46 46 46 46 . Shots Fired 65 | . 7 26 10 22 . Gun 65 | . 7 26 10 22 . Cannon . | . . . . . . Launcher . | . . . . . . Special . | . . . . . . Kinetic 65 | . 7 26 10 22 . Thermal . | . . . . . . Explosive . | . . . . . . Electromagnetic . | . . . . . . Robot Hit Streak 14 | . 12 13 14 7 . Robot Miss Streak 4 | . 1 3 2 4 . Penetration Max . | . . . . . . Secondary Targets 6 | . 1 2 1 2 . Max Gunslinging Chain 1 | . 1 1 1 1 . Shots Hit Robots 56 | . 7 22 9 18 . Core Hits 45 | . 7 18 9 11 . Critical Kills 1 | . . 1 . . . Critical Parts Destroyed 1 | . . . . 1 . Critical Strikes 2 | . . 1 . 1 . Destroy 2 | . . 1 . 1 . Melee Attacks . | . . . . . . Impact . | . . . . . . Slashing . | . . . . . . Piercing . | . . . . . . Sneak Attacks . | . . . . . . Combat Hostiles . | . . . . . . Follow-up Attacks . | . . . . . . Damage Inflicted 921 | . 120 369 168 264 . Guns 921 | . 120 369 168 264 . Cannons . | . . . . . . Explosions . | . . . . . . Melee . | . . . . . . Ramming . | . . . . . . Kinetic 921 | . 120 369 168 264 . Thermal . | . . . . . . Explosive . | . . . . . . Electromagnetic . | . . . . . . Impact . | . . . . . . Slashing . | . . . . . . Piercing . | . . . . . . Highest Corruption . | . . . . . . Average Corruption . | . . . . . . Corruption Purged . | . . . . . . Overload Shots . | . . . . . . Overflow Damage . | . . . . . . Projectiles . | . . . . . . Explosions . | . . . . . . Melee . | . . . . . . Knockbacks . | . . . . . . Impact . | . . . . . . Kinetic . | . . . . . . Secondary . | . . . . . . Self-Inflicted Damage . | . . . . . . Shots . | . . . . . . Rammed . | . . . . . . Targets Rammed . | . . . . . . Kicked . | . . . . . . Crushed . | . . . . . . Highest Temperature 25 | . . 25 18 12 . Average Temperature 8 | . . 8 11 5 . Received Heat Transfer 240 | . 144 60 30 6 . Siege Activations . | . . . . . . Robots Corrupted . | . . . . . . Combat Hostiles . | . . . . . . Parts Fried . | . . . . . . Impact Corruptions . | . . . . . . Robots Melted . | . . . . . . Combat Hostiles . | . . . . . . Parts Melted . | . . . . . . Heat Transferred . | . . . . . . Parts Sabotaged . | . . . . . . Parts Stolen . | . . . . . . Parts Stripped . | . . . . . . Power Chain Reactions . | . . . . . . Missiles Intercepted . | . . . . . . Alert | -11 -10 -10 -9 -9 -9 ------- Run | Scr Mat Min Mat Min Exi Peak Influence 220 | . 96 100 122 220 . Initial 33 | . . 26 27 33 . Average 83 | . 27 66 65 154 . Maximum Alert Level 1 | . . . . 1 . Low Security (%) 93 | 100 100 100 100 75 . Level 1 6 | . . . . 24 . Level 2 . | . . . . . . Level 3 . | . . . . . . Level 4 . | . . . . . . Level 5 . | . . . . . . High Security . | . . . . . . Max Security . | . . . . . . Squads Dispatched 2 | . 1 . 1 . . Investigation 2 | . 1 . 1 . . Extermination . | . . . . . . Reinforcement . | . . . . . . Assault . | . . . . . . Garrison . | . . . . . . Intercept . | . . . . . . Construction Impeded . | . . . . . . Haulers Reinforced . | . . . . . . Active Scanning Responses . | . . . . . . Cargo Convoy Interrupts . | . . . . . . Stealth | -11 -10 -10 -9 -9 -9 --------- Run | Scr Mat Min Mat Min Exi Distress Signals 1 | . . . 1 . . Communications Jammed . | . . . . . . Distress Signals . | . . . . . . Times Spotted 32 | . 3 15 6 8 . Peak Tracking Total 9 | . 3 9 4 2 . Tactical Retreats 1 | . . 1 . . . Traps | -11 -10 -10 -9 -9 -9 ------- Run | Scr Mat Min Mat Min Exi Traps Triggered . | . . . . . . Indirectly . | . . . . . . Trap Hack Attempts . | . . . . . . Triggered . | . . . . . . Disarmed . | . . . . . . Reprogrammed . | . . . . . . Reused . | . . . . . . Traps Extracted . | . . . . . . Installed . | . . . . . . Triggered . | . . . . . . Machines | -11 -10 -10 -9 -9 -9 ---------- Run | Scr Mat Min Mat Min Exi Machines Disabled . | . . . . . . Max in Single Turn . | . . . . . . Machines Sabotaged . | . . . . . . Garrisons Compromised . | . . . . . . Overloaded Fab Kills . | . . . . . . Fab Network Shutdowns . | . . . . . . Hacking | -11 -10 -10 -9 -9 -9 --------- Run | Scr Mat Min Mat Min Exi Machines Accessed 3 | . 1 . 1 . 1 Terminals 2 | . 1 . 1 . . Fabricators . | . . . . . . Repair Stations . | . . . . . . Recycling Units . | . . . . . . Scanalyzers . | . . . . . . Garrison Access . | . . . . . . Total Hacks 8 | . 3 . 4 . 1 Successful 4 | . 2 . 1 . 1 Failed 4 | . 1 . 3 . . Catastrophic . | . . . . . . Database Lockouts . | . . . . . . Manual 3 | . 2 . . . 1 Terminals 7 | . 3 . 4 . . Fabricators . | . . . . . . Repair Stations . | . . . . . . Recycling Units . | . . . . . . Scanalyzers . | . . . . . . Garrison Access . | . . . . . . Terminal Hacks 4 | . 2 . 1 . 1 Branch Access Points 2 | . 1 . 1 . . Maintenance Status 1 | . 1 . . . . EX-Prototype ID Bank 1 | . . . . . 1 Fabricator Hacks . | . . . . . . Repair Station Hacks . | . . . . . . Recycling Unit Hacks . | . . . . . . Scanalyzer . | . . . . . . Garrison Access Hacks . | . . . . . . Unauthorized Hacks . | . . . . . . Terminals . | . . . . . . Fabricators . | . . . . . . Repair Stations . | . . . . . . Recycling Units . | . . . . . . Scanalyzers . | . . . . . . Garrison Access . | . . . . . . Data Cores Recovered . | . . . . . . Used . | . . . . . . Hacking Detections 2 | . 1 . 1 . . Full Trace Events 2 | . 1 . 1 . . Feedback Events . | . . . . . . Feedback Blocked . | . . . . . . Robot Schematics Acquired . | . . . . . . Robots Built . | . . . . . . Matter . | . . . . . . Time . | . . . . . . Total Robot Build Rating . | . . . . . . Part Schematics Acquired . | . . . . . . Parts Built . | . . . . . . Matter . | . . . . . . Time . | . . . . . . Total Part Build Rating . | . . . . . . Parts Repaired . | . . . . . . Time . | . . . . . . Parts Recycled . | . . . . . . Recycled Matter . | . . . . . . Retrieved Matter . | . . . . . . Retrieved Components . | . . . . . . Parts Scanalyzed . | . . . . . . Part Schematics Acquired . | . . . . . . Parts Damaged . | . . . . . . Bothacking | -11 -10 -10 -9 -9 -9 ------------ Run | Scr Mat Min Mat Min Exi Used RIF Installer . | . . . . . . Robots Hacked . | . . . . . . Non-combat . | . . . . . . Combat . | . . . . . . Robot Hacks Applied . | . . . . . . Relay Couplers Released . | . . . . . . Robots Rewired . | . . . . . . Allies Hacked . | . . . . . . Hacks Repelled . | . . . . . . Allies | -11 -10 -10 -9 -9 -9 -------- Run | Scr Mat Min Mat Min Exi Total Allies 5 | . . 2 . 3 . Largest Group 3 | . . 2 . 3 . Highest-Rated Group 45 | . . 45 . 40 . Highest-Rated Ally 31 | . . 31 . 16 . Total Orders . | . . . . . . Ally Attacks 14 | . . 2 . 12 . Total Damage 157 | . . 42 . 115 . Kills 2 | . . 1 . 1 . Allies Corrupted . | . . . . . . Allies Melted . | . . . . . . Intel | -11 -10 -10 -9 -9 -9 ------- Run | Scr Mat Min Mat Min Exi Robot Analysis Total . | . . . . . . Derelict Logs Recovered . | . . . . . . Drone Launches . | . . . . . . Drone Recoveries . | . . . . . . Exploration | -11 -10 -10 -9 -9 -9 ------------- Run | Scr Mat Min Mat Min Exi Turns Passed 660 | 9 95 278 57 164 57 Spaces Moved 1485 | 18 125 689 110 378 165 Core 114 | 18 96 . . . . Treads . | . . . . . . Legs . | . . . . . . Wheels . | . . . . . . Hover . | . . . . . . Flight 1371 | . 29 689 110 378 165 Fastest Speed 34 | 50 37 34 34 34 34 Average Speed 35 | 50 49 34 34 34 34 Slowest Speed 110 | 50 110 37 34 34 34 Overloaded Moves . | . . . . . . Propulsion Burnouts . | . . . . . . Robots Hopped 19 | . . 6 . 13 . Cave-ins Triggered . | . . . . . . Exploration Rate (%) 45 | 2 22 97 17 94 41 Regions Visited 5 Branch Regions 3 Pre-discovered Areas . | . . . . . . Known Exits Taken 5 | 1 1 1 1 1 . Unknown Exits Taken . | . . . . . . Scrap Searched . | . . . . . . Spaces Dug . | . . . . . . Terrain Destroyed . | . . . . . . Melee . | . . . . . . Projectile . | . . . . . . AOE . | . . . . . . Terrain Rammed . | . . . . . . Walls Destroyed . | . . . . . . Machines Disabled . | . . . . . . Actions | -11 -10 -10 -9 -9 -9 --------- Run | Scr Mat Min Mat Min Exi Total 1522 | 17 148 697 118 377 165 Wait . | . . . . . . Move 1443 | 17 124 676 109 352 165 Hop 18 | . . 6 . 12 . Pick Up . | . . . . . . Fast Attach 12 | . 8 2 2 . . Attach . | . . . . . . Detach . | . . . . . . Swap . | . . . . . . Drop 6 | . 4 . 2 . . Fire 34 | . 5 13 5 11 . Melee . | . . . . . . Ram . | . . . . . . Kick . | . . . . . . Crush . | . . . . . . Escape Stasis . | . . . . . . Rewire . | . . . . . . Trap . | . . . . . . Miscellaneous 9 | . 7 . . 2 . Route ------- -11/Scrapyard -10/Materials (discovered 2 exits: *Min x2) -10/Mines (discovered 2 exits: *Mat x2) -9/Materials (discovered 3 exits: *Min x2 / Sto) -9/Mines (discovered 3 exits: *Mat x2 / *Exi) -9/Exiles (discovered 1 exit: *Min) History --------- Turn | Location | Event 4 | -11/Scrapyard | Identified exit to Materials 4 | -11/Scrapyard | Discovered exit to Materials (range 13) 10 | -11/Scrapyard | Entered Materials 29 | -10/Materials | Identified exit to Mines 69 | -10/Materials | Upgraded with Power slot (x1) 69 | -10/Materials | Upgraded with Propulsion slot (x2) 69 | -10/Materials | Upgraded with Utility slot (x3) 69 | -10/Materials | Upgraded with Weapon slot (x1) 105 | -10/Materials | Entered Mines 114 | -10/Mines | Assembled infested the area 173 | -10/Mines | Identified exit to Materials 173 | -10/Mines | Discovered exit to Materials (range 5) 188 | -10/Mines | Joined a pair of Derelicts in attacking an 0b10 outpost 316 | -10/Mines | Build established: Hacker-Mutant 364 | -10/Mines | Discovered exit to Materials (range 12) 383 | -10/Mines | Entered Materials 385 | -9/Materials | Reached level 2 385 | -9/Materials | Reached level 3 385 | -9/Materials | Reached level 4 390 | -9/Materials | Identified exit to Mines 390 | -9/Materials | Identified exit to Storage 440 | -9/Materials | Entered Mines 460 | -9/Mines | Identified exit to Materials 460 | -9/Mines | Discovered exit to Materials (range 3) 461 | -9/Mines | Met a Derelict bent on vengeance 476 | -9/Mines | Reached level 5 511 | -9/Mines | Discovered exit to Materials (range 16) 531 | -9/Mines | Assisted by bots powering up and referring to "LRC-V3" 602 | -9/Mines | Deemed a non-threat by the Exiles lab entrance 602 | -9/Mines | Identified exit to Exiles 602 | -9/Mines | Discovered exit to Exiles (range 5) 604 | -9/Mines | Entered Exiles 610 | -9/Exiles | Identified exit to Mines 610 | -9/Exiles | Discovered exit to Mines (range 15) 614 | -9/Exiles | Met 8R-AWN 619 | -9/Exiles | Met EX-HEX 628 | -9/Exiles | Met EX-BIN 651 | -9/Exiles | Aligned with FarCom system 651 | -9/Exiles | Given EX-Vault access code 659 | -9/Exiles | Opened EX-Vault 661 | -9/Exiles | Self-destructed Last Messages --------------- Modified TNC 0b10 Alert Chip Cloak of Protection Skeleton Box Trap Reconfigurator Supersonic Drone Bay Army-in-a-Box PSU Rigger Chronowheel AWS/Thermal Latent Energy Streamer Gui. Plasma Cannon Firepult YOLO Cannon AWS/Gauss XL Autogun Array AWS/Autocannon Field Lobotomy Kit Longsword +1 Deploy-a-Sentry Map ----- +----------------------------------------------------+ | | | | | | | | | | | | | | | | | | | | | | | | | | | | | | | | | | | | | | | | | ???????????????????#########?????????????????????? | | ???????????????????# ] #?????????????????????? | | ???????????????????# #?????????????????????? | | ???????????????????#! ] #?????????????????????? | | ???????????????????# X#?????????????????????? | | ???????????????????## @#??????????????????????? | | ???????????????????#X #??????????????????????? | | ???????????????????## #??????????????????????? | | ????????????????????# #??????????????????????? | | ????????????????????# #???#?##???????????????? | | ????????????????????# #??"""""???????????????? | | ????????????????????# ## """#??????????????? | | ????????????????????# X""#??????????????? | | ????????????????????# ## """#??????????????? | | ?????????????#####??# #??"""""???????????????? | | ?????????????""""""?# #???####???????????????? | | ?????????????"""" ## #??????????????????????? | | ????????????#""X" #??????????????????????? | | ????????????#" #??????????????????????? | | ????????????#" ## #??????????????????????? | | ????????????#""""""?# #?#########????????????? | | ????????????##"###??# #?#"""""""#????????????? | | ????????????? ??????# #?#"""""""#????????????? | | ????????????????????# #?#"""""""#????????????? | | ???????????????????## ###"" """"#????????????? | | ???????????????????#" """"#????????????? | | ???????????????????#" """#????????????? | | ???????????????????#" """#????????????? | | ???????????????????#" """#????????????? | | ???????????????????#" """#????????????? | +----------------------------------------------------+ Best States ------------- Heat Dissipation 25 Energy Generation 24 Energy Capacity 265 Matter Stores 300 Matter Capacity 300 Sight Range 16 Terrain Scan Density 10 Resistance: KI 35 Resistance: TH 35 Resistance: EX 35 Resistance: EM 35 Resistance: I 35 Resistance: S 35 Resistance: P 35 Evasion (%) 63 Offensive Hacking 20 Item Schematics ----------------- None Robot Schematics ------------------ None Fabricated ------------ Nothing Alien Tech Used ----------------- None Achievements -------------- None Challenges ------------ None RPGLIKE | -11 -10 -10 -9 -9 -9 --------- Run | Scr Mat Min Mat Min Exi Levels Raised 4 | . . . 3 1 . XP Earned 12944 | 6000 380 850 3742 1622 350 XP Spent 5550 | . 4700 850 . . . Upgrades 9 | . 7 2 . . . Power Slot 1 | . 1 . . . . Propulsion Slot 2 | . 2 . . . . Utility Slot 3 | . 3 . . . . Weapon Slot 1 | . 1 . . . . Energy Generation 2 | . . 2 . . . Protomatter Created 236 | . 110 44 36 46 . Integrity Restored 184 | . 136 . . 48 . Core 184 | . 136 . . 48 . Protomatter Decayed 107 | . . 77 . 30 . Game ------ Seed PortableUltimateTorch Manual? 0 Play Time 00:11:28 Cumulative 269.2 hours Start 2021.10.02 @ 00:30:07 End 2021.10.02 @ 00:40:59 Sessions 1 Manual Loads 0 Difficulty Explorer Special Mode Winter2019/RPGLIKE Game No. 82 Rogue 0 Adventurer 0 Explorer 82 Win Type - Total 25 Types 14/3/1/1/1/2/1/2/0 Lore% 69 Gallery% 84 Achievement% 79 Wizard Run 0 Options --------- ASCII 1 Keyboard 0 Movement Arrows Keybinds 0 Fullscreen 2 Font 18/SmallcapsGlow Map View 76x50 Tactical HUD 1 Map Filters NONE Filters NONE Steam 1 RUN: be70a79e-e983-4582-bc0a-1f2b8673cc6f